[Event "GER-ch Blitz 2019"]
[Site "Magdeburg"]
[Date "2019.05.25"]
[Round "24.12"]
[White "Heidrich, Manfred"]
[Black "Koch, Thomas"]
[Result "0-1"]
[ECO "B22"]
[WhiteElo "2351"]
[BlackElo "2474"]
[Annotator "ChessBase"]
[PlyCount "54"]
[EventDate "2019.05.25"]
[EventType "tourn"]
[EventCountry "GER"]
[Tiebreak "Number of wins+Number of black wins"]
[SourceTitle "playchess.com"]
[Source "ChessBase"]
[SourceQuality "1"]
[TimeControl "180+2"]

1. e4 {[%emt 0:00:00]} c5 {[%emt 0:00:00]} 2. c3 {[%emt 0:00:00]} d5 {[%emt 0:
00:00]} 3. exd5 Qxd5 {[%emt 0:00:00]} 4. d4 {[%emt 0:00:01]} e6 {[%emt 0:00:01]
} 5. Nf3 {[%emt 0:00:01]} Nf6 {[%emt 0:00:00]} 6. Be2 {[%emt 0:00:03]} cxd4 {
[%emt 0:00:03]} 7. Qxd4 {[%emt 0:00:02]} Nc6 {[%emt 0:00:04]} 8. Qxd5 Nxd5 {
[%emt 0:00:01]} 9. a3 {[%emt 0:00:12]} Be7 {[%emt 0:00:12]} 10. c4 {[%emt 0:00:
04]} Nb6 {[%emt 0:00:10]} 11. Nc3 {[%emt 0:00:06]} O-O {[%emt 0:00:08]} 12. Be3
{[%emt 0:00:03]} Bf6 {[%emt 0:00:04]} 13. Rc1 {[%emt 0:00:06]} Na5 {[%emt 0:00:
09]} 14. Bxb6 {[%emt 0:00:14]} axb6 {[%emt 0:00:01]} 15. Rc2 {[%emt 0:00:04]}
Bd7 {[%emt 0:00:06]} 16. O-O {[%emt 0:00:17]} Rfc8 {[%emt 0:00:02]} 17. Ne4 {
[%emt 0:00:10]} Be7 {[%emt 0:00:07]} 18. Ne5 {[%emt 0:00:06]} Ba4 {[%emt 0:00:
04]} 19. Rcc1 {[%emt 0:00:13]} Nb3 {[%emt 0:00:10]} 20. Rcd1 {[%emt 0:00:07]}
Nc5 {[%emt 0:00:07]} 21. Nd6 {[%emt 0:00:07]} Rd8 {[%emt 0:00:16]} 22. Ndxf7 {
[%emt 0:00:09]} Bxd1 {[%emt 0:00:04]} 23. Bxd1 {[%emt 0:00:44]} Rf8 {[%emt 0:
00:22]} 24. b4 {[%emt 0:00:09]} Rxf7 {[%emt 0:00:11]} 25. Nxf7 {[%emt 0:00:20]}
Nd7 {[%emt 0:00:01]} 26. Bh5 {[%emt 0:00:01]} g6 {[%emt 0:00:05]} 27. Rd1 {
[%emt 0:00:06]} Nf8 {[%emt 0:00:10]} 0-1

[Event "GER-ch Blitz 2019"]
[Site "Magdeburg"]
[Date "2019.05.25"]
[Round "24.13"]
[White "Baskin, Robert"]
[Black "Kirchner, Thomas"]
[Result "0-1"]
[ECO "A45"]
[WhiteElo "2398"]
[BlackElo "2311"]
[Annotator "NA"]
[PlyCount "138"]
[EventDate "2019.05.25"]
[EventType "tourn"]
[EventCountry "GER"]
[Tiebreak "Number of wins+Number of black wins"]
[SourceTitle "playchess.com"]
[Source "ChessBase"]
[SourceQuality "1"]
[TimeControl "180+2"]

1. d4 {[%emt 0:00:00]} Nf6 {[%emt 0:00:00]} 2. Bf4 {[%emt 0:00:02]} b6 {
[%emt 0:00:02]} 3. e3 Bb7 4. Nf3 d6 5. h3 {[%emt 0:00:06]} Nbd7 {[%emt 0:00:06]
} 6. Nbd2 {[%emt 0:00:02]} g6 {[%emt 0:00:02]} 7. Bc4 {[%emt 0:00:02]} Bg7 {
[%emt 0:00:02]} 8. O-O {[%emt 0:00:02]} O-O {[%emt 0:00:02]} 9. a4 {[%emt 0:00:
02]} a5 {[%emt 0:00:02]} 10. Qe2 {[%emt 0:00:02]} c5 {[%emt 0:00:02]} 11. c3 {
[%emt 0:00:02]} Qc7 {[%emt 0:00:02]} 12. Bh2 {[%emt 0:00:02]} Rac8 {[%emt 0:00:
02]} 13. e4 {[%emt 0:00:02]} e5 {[%emt 0:00:02]} 14. dxe5 {[%emt 0:00:02]} Nxe5
{[%emt 0:00:02]} 15. Nxe5 {[%emt 0:00:02]} dxe5 {[%emt 0:00:02]} 16. Rfd1 {
[%emt 0:00:02]} Rcd8 {[%emt 0:00:02]} 17. f3 {[%emt 0:00:02]} Nh5 {[%emt 0:00:
02]} 18. Nf1 {[%emt 0:00:02]} Bh6 {[%emt 0:00:02]} 19. Ne3 {[%emt 0:00:02]} Nf4
{[%emt 0:00:02]} 20. Qf2 {[%emt 0:00:02]} Rxd1+ {[%emt 0:00:02]} 21. Rxd1 {
[%emt 0:00:02]} Rd8 {[%emt 0:00:02]} 22. Nd5 {[%emt 0:00:44]} Bxd5 {[%emt 0:00:
04]} 23. Bxd5 {[%emt 0:00:01]} c4 {[%emt 0:00:22]} 24. Bxf4 {[%emt 0:00:08]}
Bxf4 {[%emt 0:00:02]} 25. g3 {[%emt 0:00:05]} Bg5 {[%emt 0:00:06]} 26. Qe2 {
[%emt 0:00:01]} Kg7 {[%emt 0:00:11]} 27. Kg2 {[%emt 0:00:04]} Qc5 {[%emt 0:00:
15]} 28. h4 {[%emt 0:00:04]} Be7 {[%emt 0:00:03]} 29. h5 {[%emt 0:00:02]} h6 {
[%emt 0:00:05]} 30. hxg6 {[%emt 0:00:04]} fxg6 {[%emt 0:00:01]} 31. Rh1 {
[%emt 0:00:02]} Rc8 {[%emt 0:00:09]} 32. Qd2 {[%emt 0:00:04]} Bg5 {[%emt 0:00:
02]} 33. f4 {[%emt 0:00:01]} exf4 {[%emt 0:00:06]} 34. gxf4 {[%emt 0:00:01]}
Be7 {[%emt 0:00:06]} 35. Qe2 {[%emt 0:00:18]} Rf8 {[%emt 0:00:22]} 36. Qg4 {
[%emt 0:00:28]} Qe3 {[%emt 0:00:04]} 37. Rf1 {[%emt 0:00:01]} Bc5 {[%emt 0:00:
10]} 38. Kh1 {[%emt 0:00:47]} h5 {[%emt 0:00:11]} 39. Qf3 {[%emt 0:00:10]} Rxf4
{[%emt 0:00:17]} 40. Qxe3 {[%emt 0:00:07]} Rxf1+ {[%emt 0:00:13]} 41. Kg2 {
[%emt 0:00:01]} Bxe3 {[%emt 0:00:02]} 42. Kxf1 {[%emt 0:00:01]} Bc1 {[%emt 0:
00:00]} 43. Bxc4 {[%emt 0:00:03]} Bxb2 {[%emt 0:00:01]} 44. Ke2 {[%emt 0:00:07]
} Bxc3 {[%emt 0:00:02]} 45. Kf3 {[%emt 0:00:00]} Be5 {[%emt 0:00:01]} 46. Bb5 {
[%emt 0:00:01]} Kf6 {[%emt 0:00:01]} 47. Be8 {[%emt 0:00:01]} Bc7 {[%emt 0:00:
05]} 48. Ke3 {[%emt 0:00:02]} Be5 {[%emt 0:00:02]} 49. Kf3 {[%emt 0:00:01]} Kg5
{[%emt 0:00:01]} 50. Bf7 {[%emt 0:00:01]} h4 {[%emt 0:00:03]} 51. Be6 {[%emt 0:
00:01]} Kf6 {[%emt 0:00:03]} 52. Bc8 {[%emt 0:00:01]} g5 {[%emt 0:00:00]} 53.
Kg4 {[%emt 0:00:01]} Bf4 {[%emt 0:00:02]} 54. Bb7 {[%emt 0:00:04]} Ke5 {
[%emt 0:00:00]} 55. Bc6 {[%emt 0:00:01]} Kd4 {[%emt 0:00:02]} 56. Bb7 {[%emt 0:
00:02]} Kc5 {[%emt 0:00:07]} 57. Ba8 {[%emt 0:00:19]} b5 {[%emt 0:00:02]} 58.
axb5 {[%emt 0:00:01]} Kxb5 {[%emt 0:00:03]} 59. e5 {[%emt 0:00:01]} Kc5 {
[%emt 0:00:08]} 60. e6 {[%emt 0:00:02]} Kd6 {[%emt 0:00:01]} 61. Bd5 {[%emt 0:
00:01]} a4 {[%emt 0:00:06]} 62. Ba2 {[%emt 0:00:01]} a3 {[%emt 0:00:01]} 63.
Kh3 {[%emt 0:00:01]} Be5 {[%emt 0:00:03]} 64. Kg4 {[%emt 0:00:01]} Bf6 {
[%emt 0:00:01]} 65. Kh3 {[%emt 0:00:01]} Be7 {[%emt 0:00:00]} 66. Kg4 {[%emt 0:
00:01]} Kc5 {[%emt 0:00:01]} 67. Kf5 {[%emt 0:00:06]} h3 {[%emt 0:00:01]} 68.
Ke5 {[%emt 0:00:07]} Bd6+ {[%emt 0:00:02]} 69. Kf6 {[%emt 0:00:04]} h2 0-1

[Event "GER-ch Blitz 2019"]
[Site "Magdeburg"]
[Date "2019.05.25"]
[Round "24.14"]
[White "Kopylov, Michael"]
[Black "Buhmann, Rainer"]
[Result "1/2-1/2"]
[ECO "E01"]
[WhiteElo "2413"]
[BlackElo "2573"]
[Annotator "ChessBase"]
[PlyCount "26"]
[EventDate "2019.05.25"]
[EventType "tourn"]
[EventCountry "GER"]
[Tiebreak "Number of wins+Number of black wins"]
[SourceTitle "playchess.com"]
[Source "ChessBase"]
[SourceQuality "1"]
[TimeControl "180+2"]

1. d4 {[%emt 0:00:00]} Nf6 {[%emt 0:00:00]} 2. c4 {[%emt 0:00:00]} e6 {[%emt 0:
00:00]} 3. g3 {[%emt 0:00:00]} d5 {[%emt 0:00:02]} 4. Bg2 {[%emt 0:00:01]} Bb4+
{[%emt 0:00:02]} 5. Nd2 {[%emt 0:00:00]} O-O {[%emt 0:00:11]} 6. Ngf3 {[%emt 0:
00:01]} b6 {[%emt 0:00:03]} 7. O-O {[%emt 0:00:02]} Bb7 {[%emt 0:00:03]} 8.
cxd5 {[%emt 0:00:02]} Bxd5 {[%emt 0:00:07]} 9. Qc2 {[%emt 0:00:03]} Bxd2 {
[%emt 0:00:07]} 10. Bxd2 {[%emt 0:00:03]} Be4 {[%emt 0:00:06]} 11. Qc4 {
[%emt 0:00:09]} Bd5 {[%emt 0:00:07]} 12. Qc2 {[%emt 0:00:02]} Be4 {[%emt 0:00:
05]} 13. Qc4 {[%emt 0:00:01]} Bd5 {[%emt 0:00:06]} 1/2-1/2

[Event "GER-ch Blitz 2019"]
[Site "Magdeburg"]
[Date "2019.05.25"]
[Round "24.15"]
[White "Braeuer, Franz"]
[Black "Ehmann, Thilo"]
[Result "1-0"]
[ECO "C45"]
[WhiteElo "2445"]
[BlackElo "2291"]
[Annotator "NA"]
[PlyCount "59"]
[EventDate "2019.05.25"]
[EventType "tourn"]
[EventCountry "GER"]
[Tiebreak "Number of wins+Number of black wins"]
[SourceTitle "playchess.com"]
[Source "ChessBase"]
[SourceQuality "1"]
[TimeControl "180+2"]

1. e4 {[%emt 0:00:00]} e5 {[%emt 0:00:00]} 2. Nf3 {[%emt 0:00:00]} Nc6 {
[%emt 0:00:00]} 3. d4 {[%emt 0:00:00]} exd4 {[%emt 0:00:02]} 4. Nxd4 {[%emt 0:
00:02]} Bc5 {[%emt 0:00:01]} 5. Nb3 {[%emt 0:00:00]} Bb6 {[%emt 0:00:10]} 6.
Nc3 {[%emt 0:00:01]} Qf6 {[%emt 0:00:37]} 7. Qe2 {[%emt 0:00:03]} Nge7 {
[%emt 0:00:04]} 8. h4 {[%emt 0:00:16]} O-O {[%emt 0:00:27]} 9. Bg5 {[%emt 0:00:
05]} Qg6 {[%emt 0:00:12]} 10. O-O-O {[%emt 0:00:17]} a5 {[%emt 0:00:08]} 11. a3
{[%emt 0:01:04]} a4 {[%emt 0:00:03]} 12. Nd2 {[%emt 0:00:01]} Nd4 {[%emt 0:00:
04]} 13. Qd3 {[%emt 0:00:06]} d5 {[%emt 0:00:14]} 14. Bxe7 {[%emt 0:00:25]}
dxe4 15. Ndxe4 {[%emt 0:00:03]} Re8 {[%emt 0:00:15]} 16. Bc5 {[%emt 0:00:16]}
Bf5 {[%emt 0:00:43]} 17. Bxb6 {[%emt 0:00:09]} Nxc2 {[%emt 0:00:11]} 18. Qxc2 {
[%emt 0:00:06]} Qxb6 {[%emt 0:00:03]} 19. Bd3 {[%emt 0:00:04]} Be6 {[%emt 0:00:
01]} 20. Qe2 {[%emt 0:00:10]} Bb3 {[%emt 0:00:02]} 21. Rd2 {[%emt 0:00:02]} f5
{[%emt 0:00:07]} 22. Bc4+ {[%emt 0:00:09]} Kh8 {[%emt 0:00:01]} 23. Bxb3 {
[%emt 0:00:01]} Qxb3 24. Nc5 {[%emt 0:00:07]} Qb6 {[%emt 0:00:08]} 25. Qc4 {
[%emt 0:00:01]} Qc6 {[%emt 0:00:02]} 26. Qd5 {[%emt 0:00:04]} Qg6 {[%emt 0:00:
05]} 27. Rhd1 {[%emt 0:00:05]} b6 {[%emt 0:00:01]} 28. Nd7 {[%emt 0:00:04]}
Rad8 {[%emt 0:00:01]} 29. Ne5 {[%emt 0:00:01]} Qf6 {[%emt 0:00:05]} 30. Qxd8 {
[%emt 0:00:06]} 1-0

[Event "GER-ch Blitz 2019"]
[Site "Magdeburg"]
[Date "2019.05.25"]
[Round "25.1"]
[White "Gustafsson, Jan"]
[Black "Stern, Rene"]
[Result "1-0"]
[ECO "D35"]
[WhiteElo "2639"]
[BlackElo "2538"]
[Annotator "ChessBase"]
[PlyCount "63"]
[EventDate "2019.05.25"]
[EventType "tourn"]
[EventCountry "GER"]
[Tiebreak "Number of wins+Number of black wins"]
[SourceTitle "playchess.com"]
[Source "ChessBase"]
[SourceQuality "1"]
[TimeControl "180+2"]

1. c4 {[%emt 0:00:00]} e6 {[%emt 0:00:00]} 2. Nc3 {[%emt 0:00:01]} d5 {[%emt 0:
00:00]} 3. d4 {[%emt 0:00:02]} Nf6 {[%emt 0:00:01]} 4. cxd5 {[%emt 0:00:01]}
exd5 {[%emt 0:00:01]} 5. Bg5 {[%emt 0:00:02]} c6 {[%emt 0:00:05]} 6. e3 {
[%emt 0:00:01]} Nbd7 {[%emt 0:00:05]} 7. Bd3 {[%emt 0:00:04]} h6 {[%emt 0:00:
01]} 8. Bh4 {[%emt 0:00:05]} Be7 {[%emt 0:00:01]} 9. Nge2 {[%emt 0:00:05]} Nh5
{[%emt 0:00:01]} 10. Bxe7 Qxe7 {[%emt 0:00:01]} 11. g4 {[%emt 0:00:14]} Nhf6 {
[%emt 0:00:03]} 12. Ng3 {[%emt 0:00:01]} Nb6 {[%emt 0:00:03]} 13. h3 {[%emt 0:
00:03]} Bd7 {[%emt 0:00:12]} 14. Qb3 {[%emt 0:00:08]} O-O-O {[%emt 0:00:20]}
15. a4 {[%emt 0:00:03]} Kb8 {[%emt 0:00:01]} 16. a5 {[%emt 0:00:02]} Nc8 {
[%emt 0:00:01]} 17. Na4 {[%emt 0:00:07]} Nd6 {[%emt 0:00:01]} 18. Nc5 {[%emt 0:
00:01]} Bc8 {[%emt 0:00:00]} 19. Kd2 {[%emt 0:00:16]} g6 {[%emt 0:00:09]} 20.
f3 {[%emt 0:00:06]} Ka8 {[%emt 0:00:11]} 21. Rhe1 {[%emt 0:00:04]} Qc7 {
[%emt 0:00:05]} 22. Ne2 {[%emt 0:00:07]} h5 {[%emt 0:00:02]} 23. Nc3 {[%emt 0:
00:10]} hxg4 {[%emt 0:00:02]} 24. hxg4 {[%emt 0:00:02]} Rh2+ {[%emt 0:00:09]}
25. Re2 {[%emt 0:00:01]} Rxe2+ {[%emt 0:00:02]} 26. Bxe2 {[%emt 0:00:02]} Rh8 {
[%emt 0:00:10]} 27. Qb4 {[%emt 0:00:03]} Rh2 {[%emt 0:00:14]} 28. b3 {[%emt 0:
00:34]} Qe7 {[%emt 0:00:23]} 29. N3a4 {[%emt 0:00:08]} Nde4+ {[%emt 0:00:10]}
30. fxe4 {[%emt 0:00:05]} Bxg4 {[%emt 0:00:03]} 31. Nb6+ Kb8 {[%emt 0:00:01]}
32. Na6+ {[%emt 0:00:12]} 1-0

[Event "GER-ch Blitz 2019"]
[Site "Magdeburg"]
[Date "2019.05.25"]
[Round "25.2"]
[White "Hirneise, Jens"]
[Black "Schulz, Karsten"]
[Result "1/2-1/2"]
[ECO "B06"]
[WhiteElo "2375"]
[BlackElo "2227"]
[Annotator "NA"]
[PlyCount "89"]
[EventDate "2019.05.25"]
[EventType "tourn"]
[EventCountry "GER"]
[Tiebreak "Number of wins+Number of black wins"]
[SourceTitle "playchess.com"]
[Source "ChessBase"]
[SourceQuality "1"]
[TimeControl "180+2"]

1. e4 {[%emt 0:00:00]} g6 {[%emt 0:00:00]} 2. d4 {[%emt 0:00:00]} Bg7 {[%emt 0:
00:00]} 3. Nc3 {[%emt 0:00:01]} d6 {[%emt 0:00:00]} 4. Be3 {[%emt 0:00:01]} a6
{[%emt 0:00:00]} 5. a4 {[%emt 0:00:00]} Nf6 {[%emt 0:00:02]} 6. Nf3 {[%emt 0:
00:34]} Nc6 {[%emt 0:00:08]} 7. h3 {[%emt 0:00:12]} O-O {[%emt 0:00:11]} 8. Be2
{[%emt 0:00:05]} e6 {[%emt 0:00:09]} 9. O-O {[%emt 0:00:12]} h6 {[%emt 0:00:03]
} 10. Qd2 Kh7 11. Bd3 {[%emt 0:00:16]} b6 {[%emt 0:00:12]} 12. Ne2 {[%emt 0:00:
07]} Bb7 {[%emt 0:00:03]} 13. c3 {[%emt 0:00:03]} Ne7 {[%emt 0:00:14]} 14. Ng3
{[%emt 0:00:03]} d5 {[%emt 0:00:04]} 15. e5 {[%emt 0:00:03]} Ne4 {[%emt 0:00:
02]} 16. Qc2 {[%emt 0:00:01]} Nxg3 {[%emt 0:00:25]} 17. fxg3 {[%emt 0:00:01]}
Rc8 {[%emt 0:00:04]} 18. g4 {[%emt 0:00:11]} c5 {[%emt 0:00:04]} 19. Qd2 {
[%emt 0:00:05]} Nc6 {[%emt 0:00:08]} 20. g5 {[%emt 0:00:40]} h5 {[%emt 0:00:08]
} 21. Nh4 {[%emt 0:00:04]} Ne7 {[%emt 0:00:13]} 22. Qe2 {[%emt 0:00:17]} Nf5 {
[%emt 0:00:10]} 23. Nxf5 {[%emt 0:00:09]} exf5 {[%emt 0:00:05]} 24. Bxa6 {
[%emt 0:00:20]} Bxa6 {[%emt 0:00:07]} 25. Qxa6 {[%emt 0:00:01]} cxd4 {[%emt 0:
00:01]} 26. Bxd4 {[%emt 0:00:01]} Qxg5 {[%emt 0:00:07]} 27. Qb5 {[%emt 0:00:09]
} Rfe8 {[%emt 0:00:10]} 28. Qxd5 {[%emt 0:00:02]} Rcd8 {[%emt 0:00:00]} 29.
Qxf7 {[%emt 0:00:06]} Re7 {[%emt 0:00:09]} 30. Qc4 {[%emt 0:00:03]} Bxe5 {
[%emt 0:00:07]} 31. Bxe5 {[%emt 0:00:03]} Rxe5 {[%emt 0:00:01]} 32. Qc7+ {
[%emt 0:00:08]} Qe7 {[%emt 0:00:01]} 33. Qxe7+ {[%emt 0:00:02]} Rxe7 {[%emt 0:
00:01]} 34. Rf2 {[%emt 0:00:04]} Ra7 {[%emt 0:00:06]} 35. Ra3 {[%emt 0:00:01]}
Rd6 36. Kh2 {[%emt 0:00:02]} h4 {[%emt 0:00:08]} 37. Rf4 {[%emt 0:00:03]} Rd2 {
[%emt 0:00:07]} 38. Rxh4+ {[%emt 0:00:03]} Kg7 {[%emt 0:00:01]} 39. Rb4 {
[%emt 0:00:01]} Re7 {[%emt 0:00:01]} 40. c4 {[%emt 0:00:03]} Ree2 {[%emt 0:00:
04]} 41. Rg3 {[%emt 0:00:01]} Rxb2 {[%emt 0:00:02]} 42. Rxb2 {[%emt 0:00:01]}
Rxb2 {[%emt 0:00:01]} 43. Rd3 {[%emt 0:00:04]} Rb4 {[%emt 0:00:04]} 44. Rd6 {
[%emt 0:00:01]} Rxc4 {[%emt 0:00:15]} 45. Rxb6 {[%emt 0:00:01]} 1/2-1/2

[Event "GER-ch Blitz 2019"]
[Site "Magdeburg"]
[Date "2019.05.25"]
[Round "25.3"]
[White "Carow, Johannes"]
[Black "Frischmann, Rick"]
[Result "1-0"]
[ECO "D07"]
[WhiteElo "2445"]
[BlackElo "2320"]
[Annotator "NA"]
[PlyCount "75"]
[EventDate "2019.05.25"]
[EventType "tourn"]
[EventCountry "GER"]
[Tiebreak "Number of wins+Number of black wins"]
[SourceTitle "playchess.com"]
[Source "ChessBase"]
[SourceQuality "1"]
[TimeControl "180+2"]

1. d4 {[%emt 0:00:00]} d5 {[%emt 0:00:00]} 2. c4 {[%emt 0:00:02]} Nc6 {[%emt 0:
00:00]} 3. cxd5 {[%emt 0:00:02]} Qxd5 {[%emt 0:00:00]} 4. e3 {[%emt 0:00:01]}
e5 {[%emt 0:00:00]} 5. Nc3 {[%emt 0:00:01]} Bb4 {[%emt 0:00:01]} 6. a3 {
[%emt 0:00:00]} Bxc3+ 7. bxc3 {[%emt 0:00:01]} Nf6 {[%emt 0:00:02]} 8. c4 {
[%emt 0:00:01]} Qd6 {[%emt 0:00:00]} 9. d5 {[%emt 0:00:01]} Nb8 {[%emt 0:00:01]
} 10. Ne2 {[%emt 0:00:05]} O-O {[%emt 0:00:41]} 11. Nc3 {[%emt 0:00:01]} a5 {
[%emt 0:00:12]} 12. Be2 {[%emt 0:00:09]} Na6 {[%emt 0:00:01]} 13. O-O {[%emt 0:
00:06]} Bf5 {[%emt 0:00:06]} 14. f3 {[%emt 0:00:04]} Nd7 {[%emt 0:00:26]} 15.
Kh1 {[%emt 0:00:05]} Bg6 {[%emt 0:00:03]} 16. f4 {[%emt 0:00:18]} f5 {[%emt 0:
00:04]} 17. Nb5 {[%emt 0:00:08]} Qc5 {[%emt 0:00:18]} 18. Bd3 {[%emt 0:00:24]}
Rae8 {[%emt 0:00:12]} 19. Rb1 {[%emt 0:00:01]} c6 {[%emt 0:00:06]} 20. Nc3 {
[%emt 0:00:13]} Qa7 {[%emt 0:00:09]} 21. Bc2 {[%emt 0:00:11]} Nac5 {[%emt 0:00:
04]} 22. a4 {[%emt 0:00:10]} exf4 {[%emt 0:00:03]} 23. exf4 {[%emt 0:00:02]}
Rf7 {[%emt 0:00:13]} 24. Qd4 {[%emt 0:00:08]} cxd5 25. cxd5 {[%emt 0:00:11]} b6
{[%emt 0:00:43]} 26. Bb2 {[%emt 0:00:11]} Nf6 {[%emt 0:00:01]} 27. Nb5 {
[%emt 0:00:03]} Qd7 {[%emt 0:00:01]} 28. d6 {[%emt 0:00:06]} Nfe4 {[%emt 0:00:
01]} 29. Rbe1 {[%emt 0:00:12]} Rf6 {[%emt 0:00:01]} 30. Bb1 {[%emt 0:00:22]}
Bf7 {[%emt 0:00:12]} 31. Qe3 {[%emt 0:00:15]} Nxd6 {[%emt 0:00:06]} 32. Qg3 {
[%emt 0:00:16]} Rxe1 {[%emt 0:00:02]} 33. Rxe1 {[%emt 0:00:03]} Rg6 {[%emt 0:
00:04]} 34. Qh4 {[%emt 0:00:06]} Nxb5 {[%emt 0:00:01]} 35. axb5 {[%emt 0:00:02]
} Bd5 {[%emt 0:00:01]} 36. Re2 {[%emt 0:00:04]} Qxb5 {[%emt 0:00:04]} 37. Qd8+
{[%emt 0:00:01]} Kf7 {[%emt 0:00:03]} 38. Re7# {[%emt 0:00:01] Kf6 [%clk 0:00:
13]} 1-0

[Event "GER-ch Blitz 2019"]
[Site "Magdeburg"]
[Date "2019.05.25"]
[Round "25.4"]
[White "Zuyev, Igor"]
[Black "Schneider, Ilja"]
[Result "1-0"]
[ECO "D02"]
[WhiteElo "2447"]
[BlackElo "2494"]
[Annotator "ChessBase"]
[PlyCount "57"]
[EventDate "2019.05.25"]
[EventType "tourn"]
[EventCountry "GER"]
[Tiebreak "Number of wins+Number of black wins"]
[SourceTitle "playchess.com"]
[Source "ChessBase"]
[SourceQuality "1"]
[TimeControl "180+2"]

1. d4 {[%emt 0:00:00]} d5 {[%emt 0:00:00]} 2. Nf3 {[%emt 0:00:04]} Nf6 {
[%emt 0:00:00]} 3. Bf4 {[%emt 0:00:06]} c5 {[%emt 0:00:00]} 4. dxc5 {[%emt 0:
00:05]} Qa5+ {[%emt 0:00:04]} 5. c3 {[%emt 0:00:06]} Qxc5 {[%emt 0:00:01]} 6.
e3 {[%emt 0:00:04]} Nc6 {[%emt 0:00:05]} 7. b4 {[%emt 0:00:06]} Qb6 {[%emt 0:
00:02]} 8. a4 {[%emt 0:00:05]} e6 {[%emt 0:00:22]} 9. Bd3 {[%emt 0:00:06]} Be7
{[%emt 0:00:03]} 10. Nbd2 {[%emt 0:00:05]} O-O {[%emt 0:00:06]} 11. O-O {
[%emt 0:00:04]} a5 {[%emt 0:00:07]} 12. b5 {[%emt 0:00:06]} Nb8 {[%emt 0:00:03]
} 13. c4 {[%emt 0:00:05]} Nbd7 {[%emt 0:00:06]} 14. Qc2 {[%emt 0:00:07]} Nc5 {
[%emt 0:00:05]} 15. Be5 {[%emt 0:00:10]} Bd7 {[%emt 0:00:20]} 16. Rfd1 {
[%emt 0:00:17]} Rac8 {[%emt 0:00:14]} 17. Bd4 {[%emt 0:00:07]} Rfd8 {[%emt 0:
00:09]} 18. cxd5 {[%emt 0:00:08]} exd5 {[%emt 0:00:07]} 19. Nb3 {[%emt 0:00:09]
} Nxb3 {[%emt 0:00:33]} 20. Bxb6 {[%emt 0:00:06]} Nxa1 {[%emt 0:00:08]} 21. Qb2
{[%emt 0:00:11]} Re8 {[%emt 0:00:07]} 22. Qxa1 {[%emt 0:00:07]} Bb4 {[%emt 0:
00:02]} 23. Bd4 {[%emt 0:00:06]} Ne4 {[%emt 0:00:03]} 24. Bxg7 {[%emt 0:00:08]}
Nc3 {[%emt 0:00:01]} 25. Bxc3 {[%emt 0:00:07]} Rxc3 {[%emt 0:00:01]} 26. Qb1 {
[%emt 0:00:05]} Rec8 {[%emt 0:00:04]} 27. Bxh7+ {[%emt 0:00:07]} Kg7 {[%emt 0:
00:01]} 28. Nd4 {[%emt 0:00:05]} Ba3 {[%emt 0:00:03]} 29. Ne2 {[%emt 0:00:08]}
1-0

[Event "GER-ch Blitz 2019"]
[Site "Magdeburg"]
[Date "2019.05.25"]
[Round "25.5"]
[White "Krause, Benedict"]
[Black "Stein, Robert"]
[Result "1/2-1/2"]
[ECO "C50"]
[WhiteElo "2434"]
[BlackElo "2318"]
[Annotator "NA"]
[PlyCount "82"]
[EventDate "2019.05.25"]
[EventType "tourn"]
[EventCountry "GER"]
[Tiebreak "Number of wins+Number of black wins"]
[SourceTitle "playchess.com"]
[Source "ChessBase"]
[SourceQuality "1"]
[TimeControl "180+2"]

1. e4 {[%emt 0:00:00]} e5 {[%emt 0:00:00]} 2. Nf3 Nc6 3. Bc4 {[%emt 0:00:01]}
Bc5 {[%emt 0:00:00]} 4. O-O {[%emt 0:00:02]} d6 {[%emt 0:00:00]} 5. c3 {
[%emt 0:00:02]} Nf6 {[%emt 0:00:05]} 6. d3 {[%emt 0:00:01]} a6 {[%emt 0:00:03]}
7. Bb3 {[%emt 0:00:02]} Ba7 {[%emt 0:00:01]} 8. Nbd2 {[%emt 0:00:02]} O-O {
[%emt 0:00:05]} 9. h3 {[%emt 0:00:01]} h6 {[%emt 0:00:06]} 10. Re1 {[%emt 0:00:
01]} Re8 {[%emt 0:00:01]} 11. Nf1 {[%emt 0:00:01]} Be6 {[%emt 0:00:00]} 12. Ng3
Qd7 13. Bc2 {[%emt 0:00:13]} Rad8 {[%emt 0:00:03]} 14. d4 exd4 {[%emt 0:00:24]}
15. cxd4 {[%emt 0:00:06]} d5 {[%emt 0:00:01]} 16. e5 {[%emt 0:00:02]} Ne4 {
[%emt 0:00:00]} 17. Nxe4 {[%emt 0:00:42]} dxe4 {[%emt 0:00:01]} 18. Bxe4 {
[%emt 0:00:01]} Nxd4 {[%emt 0:00:02]} 19. Be3 {[%emt 0:00:32]} Nxf3+ 20. Qxf3 {
[%emt 0:00:01]} Bxe3 {[%emt 0:00:04]} 21. Rxe3 {[%emt 0:00:08]} c6 {[%emt 0:00:
04]} 22. Qf4 {[%emt 0:00:07]} Qd2 {[%emt 0:00:16]} 23. Rae1 {[%emt 0:00:34]}
Rd4 {[%emt 0:00:45]} 24. Qh4 {[%emt 0:00:34]} Bf5 {[%emt 0:00:29]} 25. R3e2 {
[%emt 0:00:01]} Rxe4 {[%emt 0:00:24]} 26. Qxe4 {[%emt 0:00:06]} Qxe1+ {[%emt 0:
00:01]} 27. Rxe1 Bxe4 {[%emt 0:00:01]} 28. Rxe4 {[%emt 0:00:02]} Rd8 {[%emt 0:
00:04]} 29. Re2 {[%emt 0:00:02]} Kf8 {[%emt 0:00:01]} 30. f4 {[%emt 0:00:02]}
h5 {[%emt 0:00:03]} 31. Kf2 {[%emt 0:00:04]} Ke7 {[%emt 0:00:00]} 32. g4 {
[%emt 0:00:03]} hxg4 {[%emt 0:00:02]} 33. hxg4 {[%emt 0:00:00]} c5 {[%emt 0:00:
24]} 34. Kf3 {[%emt 0:00:02]} b5 {[%emt 0:00:01]} 35. f5 {[%emt 0:00:03]} c4 {
[%emt 0:00:00]} 36. g5 {[%emt 0:00:01]} g6 {[%emt 0:00:06]} 37. fxg6 {[%emt 0:
00:09]} fxg6 {[%emt 0:00:01]} 38. Ke4 {[%emt 0:00:02]} Rd1 {[%emt 0:00:04]} 39.
Rf2 {[%emt 0:00:06]} Re1+ {[%emt 0:00:03]} 40. Kd5 {[%emt 0:00:01]} Rd1+ {
[%emt 0:00:01]} 41. Ke4 {[%emt 0:00:09]} Re1+ {[%emt 0:00:01]} 1/2-1/2